[Event "Late-Titled-Tuesday-Blitz-January-30-2024"]
[Site "Chess.com"]
[Date "2024.01.30"]
[Round "2"]
[White "IngOscarArdila"]
[Black "aistrel"]
[Result "0-1"]
[WhiteElo "2340"]
[BlackElo "2543"]
[TimeControl "180+1"]
[EndTime "14:15:34 PST"]
[Termination "aistrel won by resignation"]

1. d4 {[%clk 0:03:00.1]} 1... d5 {[%clk 0:02:59.3]} 2. c4 {[%clk 0:03:00.5]}
2... e6 {[%clk 0:02:59]} 3. Nc3 {[%clk 0:03:00.8]} 3... c6 {[%clk 0:02:59.4]} 4.
Nf3 {[%clk 0:03:00.5]} 4... dxc4 {[%clk 0:02:59.6]} 5. a4 {[%clk 0:03:00]} 5...
Bb4 {[%clk 0:03:00.2]} 6. Ne5 {[%clk 0:02:52.9]} 6... b5 {[%clk 0:02:58.3]} 7.
e3 {[%clk 0:02:51.1]} 7... Bb7 {[%clk 0:02:56.6]} 8. Bd2 {[%clk 0:02:46.2]} 8...
a6 {[%clk 0:02:55.5]} 9. b3 {[%clk 0:02:33.3]} 9... cxb3 {[%clk 0:02:51.9]} 10.
Qxb3 {[%clk 0:02:32.6]} 10... Bd6 {[%clk 0:02:50]} 11. f4 {[%clk 0:02:27.9]}
11... Nd7 {[%clk 0:02:45]} 12. axb5 {[%clk 0:02:17]} 12... cxb5 {[%clk
0:02:44.2]} 13. Kf2 {[%clk 0:01:52.8]} 13... Ngf6 {[%clk 0:02:42.3]} 14. h3
{[%clk 0:01:49.4]} 14... O-O {[%clk 0:02:40.8]} 15. Rg1 {[%clk 0:01:48.4]} 15...
Bxe5 {[%clk 0:02:36.6]} 16. fxe5 {[%clk 0:01:44.8]} 16... Ne4+ {[%clk
0:02:33.9]} 17. Nxe4 {[%clk 0:01:44.8]} 17... Bxe4 {[%clk 0:02:34.7]} 18. Bb4
{[%clk 0:01:36.5]} 18... Re8 {[%clk 0:02:33.2]} 19. Bd6 {[%clk 0:01:35.8]} 19...
Nb6 {[%clk 0:02:32.5]} 20. g3 {[%clk 0:01:25.7]} 20... Bd5 {[%clk 0:02:31.5]}
21. Qb4 {[%clk 0:01:15.5]} 21... Nc4 {[%clk 0:02:26.5]} 22. Bg2 {[%clk
0:01:10.9]} 22... Nxd6 {[%clk 0:02:16.7]} 23. Qxd6 {[%clk 0:01:03.1]} 23... Qxd6
{[%clk 0:02:15.8]} 24. exd6 {[%clk 0:01:04]} 24... Bxg2 {[%clk 0:02:03.8]} 25.
Rxg2 {[%clk 0:01:01.6]} 25... Red8 {[%clk 0:02:04.7]} 26. Kf3 {[%clk 0:00:59.9]}
26... Rxd6 {[%clk 0:02:04.5]} 27. Rga2 {[%clk 0:01:00.5]} 27... Kf8 {[%clk
0:02:01.7]} 28. Ke4 {[%clk 0:01:00.1]} 28... Ke7 {[%clk 0:02:02]} 29. g4 {[%clk
0:01:00]} 29... Kd7 {[%clk 0:02:02.1]} 30. h4 {[%clk 0:00:51.3]} 30... f6 {[%clk
0:02:01.4]} 31. Rc1 {[%clk 0:00:47.8]} 31... Rc6 {[%clk 0:01:59.9]} 32. Rac2
{[%clk 0:00:39.8]} 32... Rxc2 {[%clk 0:01:58.4]} 33. Rxc2 {[%clk 0:00:40.7]}
33... a5 {[%clk 0:01:59]} 34. d5 {[%clk 0:00:40.9]} 34... a4 {[%clk 0:01:54.8]}
35. dxe6+ {[%clk 0:00:38.2]} 35... Kxe6 {[%clk 0:01:55.7]} 36. Rc6+ {[%clk
0:00:38.1]} 36... Kd7 {[%clk 0:01:55.2]} 37. Rb6 {[%clk 0:00:38.3]} 37... a3
{[%clk 0:01:54.6]} 38. Rb7+ {[%clk 0:00:30.6]} 38... Kc6 {[%clk 0:01:53.4]} 0-1

[Event "Late-Titled-Tuesday-Blitz-January-30-2024"]
[Site "Chess.com"]
[Date "2024.01.30"]
[Round "2"]
[White "LittleChessFan"]
[Black "Zq1"]
[Result "0-1"]
[WhiteElo "2254"]
[BlackElo "2510"]
[TimeControl "180+1"]
[EndTime "14:15:38 PST"]
[Termination "Zq1 won by resignation"]

1. d4 {[%clk 0:03:00.9]} 1... Nf6 {[%clk 0:02:59]} 2. c4 {[%clk 0:03:00.9]} 2...
a6 {[%clk 0:02:57.9]} 3. g3 {[%clk 0:02:59.5]} 3... c5 {[%clk 0:02:57.8]} 4. d5
{[%clk 0:02:58.7]} 4... b5 {[%clk 0:02:57.1]} 5. cxb5 {[%clk 0:02:58.8]} 5...
axb5 {[%clk 0:02:56.3]} 6. Bg2 {[%clk 0:02:59]} 6... d6 {[%clk 0:02:55.2]} 7.
Nf3 {[%clk 0:02:57.9]} 7... g6 {[%clk 0:02:55.4]} 8. O-O {[%clk 0:02:54.3]} 8...
Bg7 {[%clk 0:02:55.3]} 9. Re1 {[%clk 0:02:48.9]} 9... O-O {[%clk 0:02:54]} 10.
e4 {[%clk 0:02:49]} 10... Bg4 {[%clk 0:02:53]} 11. h3 {[%clk 0:02:48.3]} 11...
Bxf3 {[%clk 0:02:52.7]} 12. Bxf3 {[%clk 0:02:49.2]} 12... Nbd7 {[%clk
0:02:47.3]} 13. Qc2 {[%clk 0:02:43.2]} 13... c4 {[%clk 0:02:43]} 14. Nc3 {[%clk
0:02:38.2]} 14... Ne5 {[%clk 0:02:37.5]} 15. Bg2 {[%clk 0:02:31.9]} 15... b4
{[%clk 0:02:34.8]} 16. Nd1 {[%clk 0:02:14.6]} 16... b3 {[%clk 0:02:32]} 17. Qb1
{[%clk 0:02:12.6]} 17... Nd3 {[%clk 0:02:30.4]} 18. Re3 {[%clk 0:02:09.4]} 18...
Rxa2 {[%clk 0:02:21.9]} 19. Nc3 {[%clk 0:01:16.7]} 19... Rxa1 {[%clk 0:02:12.8]}
20. Qxa1 {[%clk 0:01:17.6]} 20... Qa8 {[%clk 0:02:07]} 21. Qb1 {[%clk 0:01:01]}
21... Nd7 {[%clk 0:02:00.7]} 22. Bf1 {[%clk 0:00:52.5]} 22... N7c5 {[%clk
0:01:48]} 23. Bxd3 {[%clk 0:00:49.8]} 23... Nxd3 {[%clk 0:01:46]} 24. Kg2 {[%clk
0:00:48.1]} 24... Bxc3 {[%clk 0:01:43.5]} 25. bxc3 {[%clk 0:00:49]} 25... Qa2
{[%clk 0:01:42]} 26. Qxa2 {[%clk 0:00:41.5]} 26... bxa2 {[%clk 0:01:41]} 27. Bb2
{[%clk 0:00:42.4]} 27... Nxb2 {[%clk 0:01:34.2]} 28. Re1 {[%clk 0:00:42.7]}
28... Ra8 {[%clk 0:01:31.6]} 29. Ra1 {[%clk 0:00:42.6]} 29... Nd3 {[%clk
0:01:30.3]} 30. Kf3 {[%clk 0:00:39]} 30... Nc1 {[%clk 0:01:30]} 31. Rxa2 {[%clk
0:00:38.2]} 31... Nxa2 {[%clk 0:01:29.1]} 0-1

[Event "Late-Titled-Tuesday-Blitz-January-30-2024"]
[Site "Chess.com"]
[Date "2024.01.30"]
[Round "2"]
[White "nikitadovbnya2008"]
[Black "Sandpacer"]
[Result "0-1"]
[WhiteElo "2100"]
[BlackElo "2465"]
[TimeControl "180+1"]
[EndTime "14:15:39 PST"]
[Termination "Sandpacer won by resignation"]

1. d4 {[%clk 0:03:00.9]} 1... f5 {[%clk 0:02:58.9]} 2. Nc3 {[%clk 0:03:00.2]}
2... Nf6 {[%clk 0:02:59.5]} 3. Bg5 {[%clk 0:03:00.7]} 3... g6 {[%clk 0:02:59.4]}
4. h4 {[%clk 0:03:00.4]} 4... Bg7 {[%clk 0:02:58.5]} 5. h5 {[%clk 0:03:00.4]}
5... Nxh5 {[%clk 0:02:58]} 6. Rxh5 {[%clk 0:03:00.4]} 6... gxh5 {[%clk
0:02:58.9]} 7. e4 {[%clk 0:03:00.7]} 7... O-O {[%clk 0:02:58]} 8. Qxh5 {[%clk
0:02:40.6]} 8... Qe8 {[%clk 0:02:51.3]} 9. Qh2 {[%clk 0:02:34.8]} 9... d6 {[%clk
0:02:44.2]} 10. Bc4+ {[%clk 0:02:31.6]} 10... e6 {[%clk 0:02:41.8]} 11. exf5
{[%clk 0:02:21.9]} 11... Rxf5 {[%clk 0:02:40]} 12. Be3 {[%clk 0:02:21.5]} 12...
Qh5 {[%clk 0:02:22.9]} 13. Nh3 {[%clk 0:02:19.9]} 13... Nc6 {[%clk 0:02:17.8]}
14. Bd3 {[%clk 0:02:17.9]} 14... Rf7 {[%clk 0:02:09.8]} 15. Qg3 {[%clk 0:01:56]}
15... Kh8 {[%clk 0:01:33.7]} 16. Ne2 {[%clk 0:01:52.6]} 16... e5 {[%clk
0:01:31.7]} 17. d5 {[%clk 0:01:51.8]} 17... Nb4 {[%clk 0:01:24.6]} 18. Be4
{[%clk 0:01:44]} 18... Bxh3 {[%clk 0:01:16.6]} 19. gxh3 {[%clk 0:01:39.2]} 19...
Rg8 {[%clk 0:01:16.8]} 20. Qh2 {[%clk 0:01:26.4]} 20... Qh4 {[%clk 0:00:59.9]}
21. Ng3 {[%clk 0:01:24.4]} 21... Bh6 {[%clk 0:00:59.7]} 22. Bxh6 {[%clk
0:01:19.7]} 22... Qxh6 {[%clk 0:01:00.6]} 23. c3 {[%clk 0:01:16.9]} 23... Na6
{[%clk 0:00:54]} 24. Nf5 {[%clk 0:01:15]} 24... Qh5 {[%clk 0:00:49.8]} 25. f3
{[%clk 0:01:09.6]} 25... Nc5 {[%clk 0:00:49.8]} 26. O-O-O {[%clk 0:01:06.1]}
26... Rxf5 {[%clk 0:00:49.6]} 27. Bxf5 {[%clk 0:01:04.1]} 27... Qxf5 {[%clk
0:00:50.5]} 0-1

[Event "Late-Titled-Tuesday-Blitz-January-30-2024"]
[Site "Chess.com"]
[Date "2024.01.30"]
[Round "2"]
[White "OneTrickPony_82"]
[Black "Doudou2015"]
[Result "1-0"]
[WhiteElo "2499"]
[BlackElo "2213"]
[TimeControl "180+1"]
[EndTime "14:15:51 PST"]
[Termination "OneTrickPony_82 won by checkmate"]

1. d4 {[%clk 0:03:00.9]} 1... d5 {[%clk 0:02:59.2]} 2. c4 {[%clk 0:03:01]} 2...
e6 {[%clk 0:02:58.7]} 3. Nf3 {[%clk 0:03:01.4]} 3... c6 {[%clk 0:02:57.8]} 4. e3
{[%clk 0:03:00.4]} 4... f5 {[%clk 0:02:56.1]} 5. Be2 {[%clk 0:03:00.1]} 5... Nf6
{[%clk 0:02:56.2]} 6. O-O {[%clk 0:03:00.1]} 6... Bd6 {[%clk 0:02:56.1]} 7. b3
{[%clk 0:03:00.5]} 7... O-O {[%clk 0:02:55.1]} 8. Ba3 {[%clk 0:02:58.6]} 8... h6
{[%clk 0:02:42.2]} 9. Bxd6 {[%clk 0:02:55.8]} 9... Qxd6 {[%clk 0:02:43.1]} 10.
Qc2 {[%clk 0:02:54.2]} 10... Nbd7 {[%clk 0:02:40.1]} 11. Qb2 {[%clk 0:02:53.5]}
11... g5 {[%clk 0:02:27.7]} 12. Nbd2 {[%clk 0:02:48.3]} 12... Ne4 {[%clk
0:02:18.6]} 13. Rad1 {[%clk 0:02:46.3]} 13... Qc7 {[%clk 0:02:07.1]} 14. Nxe4
{[%clk 0:02:38.4]} 14... fxe4 {[%clk 0:02:08]} 15. Ne5 {[%clk 0:02:37.5]} 15...
Nxe5 {[%clk 0:02:01]} 16. dxe5 {[%clk 0:02:37.7]} 16... Rf5 {[%clk 0:01:57.7]}
17. f4 {[%clk 0:02:33]} 17... exf3 {[%clk 0:01:53.6]} 18. Rxf3 {[%clk 0:02:25]}
18... Qxe5 {[%clk 0:01:47.2]} 19. Qxe5 {[%clk 0:02:25.1]} 19... Rxe5 {[%clk
0:01:47]} 20. Bd3 {[%clk 0:02:22.2]} 20... Bd7 {[%clk 0:01:41.9]} 21. Rdf1
{[%clk 0:02:22.1]} 21... Re8 {[%clk 0:01:21.8]} 22. Rf7 {[%clk 0:02:15.1]} 22...
Bc8 {[%clk 0:01:15.2]} 23. Rc7 {[%clk 0:02:07]} 23... Rxe3 {[%clk 0:01:02.6]}
24. Bg6 {[%clk 0:02:06.6]} 24... Rd8 {[%clk 0:00:30.8]} 25. Rf6 {[%clk
0:01:36.2]} 25... dxc4 {[%clk 0:00:18.3]} 26. Bf7+ {[%clk 0:01:26.6]} 26... Kg7
{[%clk 0:00:17.5]} 27. Rg6+ {[%clk 0:01:26]} 27... Kf8 {[%clk 0:00:16.4]} 28.
Rg8# {[%clk 0:01:24.3]} 1-0

[Event "Late-Titled-Tuesday-Blitz-January-30-2024"]
[Site "Chess.com"]
[Date "2024.01.30"]
[Round "2"]
[White "Lion_DL"]
[Black "Siemba"]
[Result "0-1"]
[WhiteElo "2345"]
[BlackElo "2545"]
[TimeControl "180+1"]
[EndTime "14:15:58 PST"]
[Termination "Siemba won by resignation"]

1. d4 {[%clk 0:03:00.9]} 1... d5 {[%clk 0:02:57.8]} 2. c4 {[%clk 0:03:00.6]}
2... dxc4 {[%clk 0:02:58.5]} 3. e3 {[%clk 0:03:00.4]} 3... Nf6 {[%clk 0:02:58]}
4. Nf3 {[%clk 0:02:59.7]} 4... a6 {[%clk 0:02:56.7]} 5. Bxc4 {[%clk 0:02:58.7]}
5... e6 {[%clk 0:02:57.1]} 6. Bd3 {[%clk 0:02:57.1]} 6... c5 {[%clk 0:02:57.2]}
7. O-O {[%clk 0:02:57.3]} 7... Nc6 {[%clk 0:02:57.2]} 8. Nc3 {[%clk 0:02:40]}
8... b5 {[%clk 0:02:53.6]} 9. Ne4 {[%clk 0:02:26.1]} 9... c4 {[%clk 0:02:49.5]}
10. Nxf6+ {[%clk 0:02:13.2]} 10... gxf6 {[%clk 0:02:44.2]} 11. Be4 {[%clk
0:02:13.2]} 11... Bb7 {[%clk 0:02:44.7]} 12. d5 {[%clk 0:02:02.2]} 12... Ne5
{[%clk 0:02:37]} 13. Nxe5 {[%clk 0:01:59]} 13... fxe5 {[%clk 0:02:37.9]} 14. Qh5
{[%clk 0:01:48.6]} 14... exd5 {[%clk 0:02:09.1]} 15. Qxe5+ {[%clk 0:01:43.2]}
15... Qe7 {[%clk 0:02:09.7]} 16. Qxh8 {[%clk 0:01:38.9]} 16... Qxe4 {[%clk
0:02:10.2]} 17. f3 {[%clk 0:01:33.9]} 17... Qg6 {[%clk 0:02:09.7]} 18. Qe5+
{[%clk 0:01:31]} 18... Be7 {[%clk 0:02:09.3]} 19. b3 {[%clk 0:01:20.1]} 19...
Kd7 {[%clk 0:01:57.4]} 20. e4 {[%clk 0:01:16.8]} 20... Bf6 {[%clk 0:01:52.1]}
21. Qf4 {[%clk 0:00:53.8]} 21... Bxa1 {[%clk 0:01:49.1]} 22. exd5 {[%clk
0:00:52.4]} 22... Rg8 {[%clk 0:01:41.9]} 23. g3 {[%clk 0:00:47.8]} 23... Qf6
{[%clk 0:01:33.2]} 24. bxc4 {[%clk 0:00:09.8]} 24... Qxf4 {[%clk 0:01:32.8]} 25.
Bxf4 {[%clk 0:00:10.7]} 25... Bd4+ {[%clk 0:01:32.7]} 26. Kg2 {[%clk 0:00:11.4]}
26... bxc4 {[%clk 0:01:32.7]} 27. Rd1 {[%clk 0:00:10.4]} 27... Bc5 {[%clk
0:01:29.9]} 28. Rc1 {[%clk 0:00:10.5]} 28... Bxd5 {[%clk 0:01:29.9]} 0-1

[Event "Late-Titled-Tuesday-Blitz-January-30-2024"]
[Site "Chess.com"]
[Date "2024.01.30"]
[Round "2"]
[White "Firouzja2003"]
[Black "IlanSchnaider"]
[Result "1-0"]
[WhiteElo "3138"]
[BlackElo "2673"]
[TimeControl "180+1"]
[EndTime "14:16:02 PST"]
[Termination "Firouzja2003 won by resignation"]

1. d4 {[%clk 0:02:53.7]} 1... d5 {[%clk 0:03:00.1]} 2. c4 {[%clk 0:02:52.6]}
2... c6 {[%clk 0:03:00.6]} 3. Nf3 {[%clk 0:02:40.7]} 3... Nf6 {[%clk 0:03:00.6]}
4. Nc3 {[%clk 0:02:39.6]} 4... e6 {[%clk 0:03:00.2]} 5. Qb3 {[%clk 0:02:38]}
5... Be7 {[%clk 0:02:39]} 6. Bg5 {[%clk 0:02:36.1]} 6... O-O {[%clk 0:02:38.6]}
7. e3 {[%clk 0:02:35.4]} 7... Nbd7 {[%clk 0:02:35.9]} 8. cxd5 {[%clk 0:02:34.7]}
8... exd5 {[%clk 0:02:34.2]} 9. Bd3 {[%clk 0:02:34.3]} 9... Re8 {[%clk
0:02:29.3]} 10. O-O {[%clk 0:02:28.1]} 10... Nf8 {[%clk 0:02:29]} 11. Ne5 {[%clk
0:02:25.2]} 11... Ng6 {[%clk 0:02:27.4]} 12. f4 {[%clk 0:02:24.5]} 12... Ng4
{[%clk 0:02:13.2]} 13. Bxe7 {[%clk 0:02:23.3]} 13... Qxe7 {[%clk 0:02:12.7]} 14.
Rae1 {[%clk 0:02:23.9]} 14... N6xe5 {[%clk 0:01:40.5]} 15. fxe5 {[%clk
0:02:16.4]} 15... Qg5 {[%clk 0:01:40.5]} 16. Qd1 {[%clk 0:02:09.5]} 16... f6
{[%clk 0:01:19.1]} 17. Qf3 {[%clk 0:01:50.4]} 17... Be6 {[%clk 0:01:07]} 18. h3
{[%clk 0:01:35.2]} 18... fxe5 {[%clk 0:01:03.2]} 19. Qg3 {[%clk 0:01:35]} 19...
e4 {[%clk 0:00:35.8]} 20. Bc2 {[%clk 0:01:32.1]} 20... Rf8 {[%clk 0:00:30.5]}
21. hxg4 {[%clk 0:01:30.1]} 21... Bxg4 {[%clk 0:00:30]} 22. Bd1 {[%clk 0:01:29]}
22... h5 {[%clk 0:00:29.8]} 23. Bxg4 {[%clk 0:01:28.9]} 23... hxg4 {[%clk
0:00:29.3]} 24. Ne2 {[%clk 0:01:28.9]} 24... Qh6 {[%clk 0:00:18.7]} 25. Rxf8+
{[%clk 0:01:25.3]} 25... Rxf8 {[%clk 0:00:18.5]} 26. Rf1 {[%clk 0:01:26]} 26...
g6 {[%clk 0:00:10.2]} 27. Rxf8+ {[%clk 0:01:25.6]} 27... Kxf8 {[%clk 0:00:11.1]}
28. Qf4+ {[%clk 0:01:25.4]} 28... Kg7 {[%clk 0:00:10.1]} 29. Qxh6+ {[%clk
0:01:24.9]} 29... Kxh6 {[%clk 0:00:11]} 30. Kf2 {[%clk 0:01:25.5]} 1-0

[Event "Late-Titled-Tuesday-Blitz-January-30-2024"]
[Site "Chess.com"]
[Date "2024.01.30"]
[Round "2"]
[White "lupta_robin"]
[Black "norwaytoadog"]
[Result "1-0"]
[WhiteElo "2508"]
[BlackElo "2246"]
[TimeControl "180+1"]
[EndTime "14:16:03 PST"]
[Termination "lupta_robin won by checkmate"]

1. c4 {[%clk 0:03:00.9]} 1... e5 {[%clk 0:02:58.5]} 2. Nc3 {[%clk 0:02:59.7]}
2... Nf6 {[%clk 0:02:58.3]} 3. Nf3 {[%clk 0:02:57.1]} 3... Nc6 {[%clk
0:02:57.9]} 4. d4 {[%clk 0:02:56.5]} 4... e4 {[%clk 0:02:56.9]} 5. Ne5 {[%clk
0:02:56]} 5... d6 {[%clk 0:02:54.7]} 6. Nxc6 {[%clk 0:02:56]} 6... bxc6 {[%clk
0:02:54.9]} 7. g3 {[%clk 0:02:50.4]} 7... Bf5 {[%clk 0:02:53.1]} 8. Bg2 {[%clk
0:02:49.8]} 8... h5 {[%clk 0:02:50.8]} 9. Bg5 {[%clk 0:02:47.4]} 9... d5 {[%clk
0:02:39.6]} 10. cxd5 {[%clk 0:02:46.1]} 10... cxd5 {[%clk 0:02:39]} 11. Bxf6
{[%clk 0:02:28.6]} 11... gxf6 {[%clk 0:02:38.9]} 12. h4 {[%clk 0:02:28.8]} 12...
c6 {[%clk 0:02:33.4]} 13. e3 {[%clk 0:02:27.3]} 13... Bd6 {[%clk 0:02:29.8]} 14.
O-O {[%clk 0:02:21.8]} 14... Qd7 {[%clk 0:02:19.2]} 15. Rc1 {[%clk 0:02:15.1]}
15... Bh3 {[%clk 0:01:58.8]} 16. Ne2 {[%clk 0:02:14.5]} 16... Bg4 {[%clk
0:01:46.3]} 17. Qc2 {[%clk 0:02:10.1]} 17... Bxe2 {[%clk 0:01:40.5]} 18. Qxe2
{[%clk 0:02:09.5]} 18... Ke7 {[%clk 0:01:30.7]} 19. Kh2 {[%clk 0:02:06.8]} 19...
Rag8 {[%clk 0:01:25.1]} 20. Bh3 {[%clk 0:02:05.2]} 20... Qc7 {[%clk 0:01:20.4]}
21. Rg1 {[%clk 0:02:05.9]} 21... Kf8 {[%clk 0:00:56.6]} 22. Qa6 {[%clk
0:02:04.5]} 22... Qb8 {[%clk 0:00:42.4]} 23. Rxc6 {[%clk 0:01:55.9]} 23... Qxb2
{[%clk 0:00:18.5]} 24. Rxd6 {[%clk 0:01:55.2]} 24... Qxf2+ {[%clk 0:00:18.1]}
25. Rg2 {[%clk 0:01:55.7]} 25... Qxe3 {[%clk 0:00:17.1]} 26. Rxf6 {[%clk
0:01:55.9]} 26... Qxd4 {[%clk 0:00:11.9]} 27. Qe6 {[%clk 0:01:54.2]} 27... Rg7
{[%clk 0:00:11.7]} 28. Rgf2 {[%clk 0:01:51.9]} 28... Rhh7 {[%clk 0:00:08.3]} 29.
Qc8+ {[%clk 0:01:46.8]} 29... Ke7 {[%clk 0:00:08.2]} 30. Re6+ {[%clk 0:01:40.1]}
30... fxe6 {[%clk 0:00:05.9]} 31. Qxe6+ {[%clk 0:01:41]} 31... Kd8 {[%clk
0:00:04]} 32. Rf8+ {[%clk 0:01:41.9]} 32... Kc7 {[%clk 0:00:03.8]} 33. Rc8+
{[%clk 0:01:42.8]} 33... Kb7 {[%clk 0:00:03.8]} 34. Qc6# {[%clk 0:01:43.7]} 1-0

[Event "Late-Titled-Tuesday-Blitz-January-30-2024"]
[Site "Chess.com"]
[Date "2024.01.30"]
[Round "2"]
[White "reevecanada"]
[Black "cthulhuuu"]
[Result "1-0"]
[WhiteElo "2616"]
[BlackElo "2377"]
[TimeControl "180+1"]
[EndTime "14:16:04 PST"]
[Termination "reevecanada won on time"]

1. e4 {[%clk 0:02:59]} 1... d6 {[%clk 0:02:57.4]} 2. d4 {[%clk 0:02:57.5]} 2...
Nf6 {[%clk 0:02:57.5]} 3. Nc3 {[%clk 0:02:57.7]} 3... c6 {[%clk 0:02:57.9]} 4.
f3 {[%clk 0:02:56.6]} 4... b5 {[%clk 0:02:57.3]} 5. Be3 {[%clk 0:02:57.1]} 5...
e5 {[%clk 0:02:57.4]} 6. a3 {[%clk 0:02:56.6]} 6... Be7 {[%clk 0:02:57]} 7. Nge2
{[%clk 0:02:56.6]} 7... O-O {[%clk 0:02:56.9]} 8. g4 {[%clk 0:02:57.2]} 8...
Nbd7 {[%clk 0:02:53.1]} 9. h4 {[%clk 0:02:57.6]} 9... Bb7 {[%clk 0:02:50.3]} 10.
g5 {[%clk 0:02:53.6]} 10... Nh5 {[%clk 0:02:49.8]} 11. Bh3 {[%clk 0:02:53.9]}
11... exd4 {[%clk 0:01:52.1]} 12. Qxd4 {[%clk 0:02:49.3]} 12... Ne5 {[%clk
0:01:49.4]} 13. Bg4 {[%clk 0:02:44.8]} 13... c5 {[%clk 0:01:22.1]} 14. Qd1
{[%clk 0:02:41.8]} 14... g6 {[%clk 0:00:41.4]} 15. Bxh5 {[%clk 0:02:37.6]} 15...
gxh5 {[%clk 0:00:42.3]} 16. Nf4 {[%clk 0:02:36.7]} 16... Nc4 {[%clk 0:00:27.1]}
17. Bc1 {[%clk 0:02:33.4]} 17... Kh8 {[%clk 0:00:16.6]} 18. b3 {[%clk
0:02:19.2]} 18... Qa5 {[%clk 0:00:10.2]} 19. Qd3 {[%clk 0:01:57.8]} 19... Ne5
{[%clk 0:00:10.6]} 20. Qe3 {[%clk 0:01:57.6]} 20... f5 {[%clk 0:00:10.4]} 21.
Bd2 {[%clk 0:01:52.2]} 21... Qd8 {[%clk 0:00:07.5]} 22. Ne6 {[%clk 0:01:50.6]}
22... Qe8 {[%clk 0:00:07.4]} 23. Nc7 {[%clk 0:01:49.9]} 23... Qf7 {[%clk
0:00:06.2]} 24. Nxa8 {[%clk 0:01:49]} 24... Bxa8 {[%clk 0:00:06]} 25. O-O-O
{[%clk 0:01:47.3]} 25... b4 {[%clk 0:00:03.8]} 26. axb4 {[%clk 0:01:46.3]} 26...
cxb4 {[%clk 0:00:03.9]} 27. Ne2 {[%clk 0:01:45.1]} 27... a5 {[%clk 0:00:04]} 28.
Nd4 {[%clk 0:01:44.2]} 28... a4 {[%clk 0:00:04.1]} 29. Nxf5 {[%clk 0:01:43.3]}
29... axb3 {[%clk 0:00:03.8]} 30. Qxb3 {[%clk 0:01:44.2]} 30... d5 {[%clk
0:00:03.2]} 31. Nxe7 {[%clk 0:01:43]} 31... Qxe7 {[%clk 0:00:02.8]} 32. Bxb4
{[%clk 0:01:43.4]} 1-0

[Event "Late-Titled-Tuesday-Blitz-January-30-2024"]
[Site "Chess.com"]
[Date "2024.01.30"]
[Round "2"]
[White "SmirnovTimofey2000"]
[Black "PoXerStar"]
[Result "0-1"]
[WhiteElo "1944"]
[BlackElo "2426"]
[TimeControl "180+1"]
[EndTime "14:16:06 PST"]
[Termination "PoXerStar won on time"]

1. e4 {[%clk 0:02:53]} 1... c5 {[%clk 0:02:59.4]} 2. c3 {[%clk 0:02:53]} 2... e5
{[%clk 0:02:56.7]} 3. d4 {[%clk 0:02:41.2]} 3... cxd4 {[%clk 0:02:57.6]} 4. cxd4
{[%clk 0:02:42.1]} 4... exd4 {[%clk 0:02:58]} 5. Nf3 {[%clk 0:02:40.6]} 5... Bc5
{[%clk 0:02:56.3]} 6. Nxd4 {[%clk 0:02:38]} 6... Nf6 {[%clk 0:02:56.1]} 7. Nc3
{[%clk 0:02:33.7]} 7... O-O {[%clk 0:02:55.9]} 8. Be3 {[%clk 0:02:20.7]} 8...
Re8 {[%clk 0:02:50.6]} 9. Bd3 {[%clk 0:02:18.9]} 9... d5 {[%clk 0:02:48.8]} 10.
Ne6 {[%clk 0:01:44]} 10... Bxe6 {[%clk 0:02:18.3]} 11. Bxc5 {[%clk 0:01:42.6]}
11... dxe4 {[%clk 0:02:18.4]} 12. Bb5 {[%clk 0:01:24.4]} 12... Nbd7 {[%clk
0:02:17.6]} 13. Bxd7 {[%clk 0:01:09.8]} 13... Nxd7 {[%clk 0:02:17]} 14. Be3
{[%clk 0:00:54.9]} 14... Ne5 {[%clk 0:02:06.6]} 15. O-O {[%clk 0:00:53.4]} 15...
Qh4 {[%clk 0:01:58.4]} 16. Qc2 {[%clk 0:00:24.3]} 16... Nf3+ {[%clk 0:01:14]}
17. gxf3 {[%clk 0:00:21.7]} 17... exf3 {[%clk 0:01:14.9]} 18. Qe4 {[%clk
0:00:16.9]} 18... Qh3 {[%clk 0:01:12.7]} 0-1

[Event "Late-Titled-Tuesday-Blitz-January-30-2024"]
[Site "Chess.com"]
[Date "2024.01.30"]
[Round "2"]
[White "JonasGallasch"]
[Black "only_strong_moves"]
[Result "0-1"]
[WhiteElo "2329"]
[BlackElo "2542"]
[TimeControl "180+1"]
[EndTime "14:16:21 PST"]
[Termination "only_strong_moves won by resignation"]

1. Nf3 {[%clk 0:03:00.9]} 1... Nf6 {[%clk 0:03:00.2]} 2. g3 {[%clk 0:03:00.3]}
2... e6 {[%clk 0:03:00.7]} 3. Bg2 {[%clk 0:03:00.9]} 3... d5 {[%clk 0:03:01.6]}
4. O-O {[%clk 0:03:01.5]} 4... Be7 {[%clk 0:03:02.5]} 5. d4 {[%clk 0:03:02.1]}
5... O-O {[%clk 0:03:03.3]} 6. c4 {[%clk 0:03:02.8]} 6... dxc4 {[%clk
0:03:04.1]} 7. Qc2 {[%clk 0:03:00.7]} 7... a6 {[%clk 0:03:04.2]} 8. Qxc4 {[%clk
0:02:53.7]} 8... b5 {[%clk 0:03:03.7]} 9. Qc2 {[%clk 0:02:53.7]} 9... Bb7 {[%clk
0:03:04.2]} 10. Bd2 {[%clk 0:02:49.7]} 10... Be4 {[%clk 0:03:02.1]} 11. Qc1
{[%clk 0:02:47.7]} 11... Nc6 {[%clk 0:03:02.6]} 12. e3 {[%clk 0:02:44.1]} 12...
b4 {[%clk 0:03:02.8]} 13. Ne1 {[%clk 0:02:34.5]} 13... Bxg2 {[%clk 0:03:02.4]}
14. Nxg2 {[%clk 0:02:33.4]} 14... Qd5 {[%clk 0:03:01.9]} 15. Nf4 {[%clk
0:02:33.1]} 15... Qd7 {[%clk 0:02:55]} 16. Be1 {[%clk 0:02:28.4]} 16... e5
{[%clk 0:02:55]} 17. dxe5 {[%clk 0:02:22.8]} 17... Nxe5 {[%clk 0:02:55.9]} 18.
Nd2 {[%clk 0:02:13.5]} 18... g5 {[%clk 0:02:49.8]} 19. Ne2 {[%clk 0:02:11.4]}
19... Qh3 {[%clk 0:02:49.1]} 20. Nd4 {[%clk 0:01:57.9]} 20... Rad8 {[%clk
0:02:42]} 21. f3 {[%clk 0:01:23.8]} 21... c5 {[%clk 0:02:36.5]} 22. N4b3 {[%clk
0:01:17]} 22... Rd3 {[%clk 0:02:33.6]} 23. Nc4 {[%clk 0:01:11.5]} 23... Nfd7
{[%clk 0:02:14]} 24. Qc2 {[%clk 0:00:58.6]} 24... Rd8 {[%clk 0:02:08.1]} 25.
Nbd2 {[%clk 0:00:45.6]} 25... Qe6 {[%clk 0:01:52.9]} 26. Bf2 {[%clk 0:00:30.6]}
26... Nxc4 {[%clk 0:01:47.2]} 27. Nxc4 {[%clk 0:00:31.5]} 27... Ne5 {[%clk
0:01:43.9]} 28. Nxe5 {[%clk 0:00:29.4]} 28... Qxe5 {[%clk 0:01:44.8]} 29. Rad1
{[%clk 0:00:28.4]} 29... c4 {[%clk 0:01:41.6]} 30. b3 {[%clk 0:00:21.3]} 30...
Qc3 {[%clk 0:01:39.3]} 31. Qxc3 {[%clk 0:00:20.5]} 31... bxc3 {[%clk 0:01:40.2]}
32. Rc1 {[%clk 0:00:20.5]} 32... cxb3 {[%clk 0:01:38.4]} 33. axb3 {[%clk
0:00:21.4]} 33... Bb4 {[%clk 0:01:36.7]} 34. e4 {[%clk 0:00:18.6]} 34... Rd2
{[%clk 0:01:36.4]} 35. Be3 {[%clk 0:00:18.4]} 35... Re2 {[%clk 0:01:36.4]} 36.
Bxg5 {[%clk 0:00:18.7]} 36... Rd3 {[%clk 0:01:34.5]} 37. Rf2 {[%clk 0:00:16.1]}
37... Bc5 {[%clk 0:01:33.9]} 0-1